[Event "Titled Tuesday Blitz January 31 Early 2023"]
[White "Sai Han Thiha"]
[Black "Berezin, Viktor"]
[WhiteFideId "13012290"]
[BlackFideId "14107872"]
[WhiteElo "2070"]
[BlackElo "2307"]
[Result "1-0"]
[Round "05"]
[TimeControl "180+2"]
[Date "2023.01.31"]
[WhiteClock "0:00:14"]
[BlackClock "0:00:23"]

1. d4 {[%clk 0:03:00]}  Nf6 {[%clk 0:02:59]} 2. c4 {[%clk 0:03:01]}  g6 {[%clk 0:02:57]} 3. Nc3 {[%clk 0:03:01]}  Bg7 {[%clk 0:02:57]} 4. e4 {[%clk 0:03:01]}  O-O {[%clk 0:02:57]} 5. Nf3 {[%clk 0:03:02]}  d6 {[%clk 0:02:58]} 6. Be2 {[%clk 0:03:02]}  e5 {[%clk 0:02:58]} 7. Be3 {[%clk 0:03:03]}  Ng4 {[%clk 0:02:56]} 8. Bg5 {[%clk 0:03:03]}  Qe8 {[%clk 0:02:55]} 9. dxe5 {[%clk 0:02:27]}  Nxe5 {[%clk 0:02:52]} 10. O-O {[%clk 0:02:19]}  h6 {[%clk 0:02:45]} 11. Be3 {[%clk 0:02:13]}  Na6 {[%clk 0:02:40]} 12. Nxe5 {[%clk 0:02:11]}  Qxe5 {[%clk 0:02:36]} 13. Qd2 {[%clk 0:02:07]}  Kh7 {[%clk 0:02:30]} 14. f4 {[%clk 0:01:59]}  Qa5 {[%clk 0:02:23]} 15. Rac1 {[%clk 0:01:52]}  Bd7 {[%clk 0:02:21]} 16. b3 {[%clk 0:01:44]}  Rae8 {[%clk 0:02:20]} 17. Bf3 {[%clk 0:01:44]}  Nc5 {[%clk 0:02:15]} 18. Nd5 {[%clk 0:01:14]}  Qxd2 {[%clk 0:02:14]} 19. Bxd2 {[%clk 0:01:15]}  Nxe4 {[%clk 0:02:08]} 20. Bxe4 {[%clk 0:01:00]}  Rxe4 {[%clk 0:02:09]} 21. Nxc7 {[%clk 0:01:01]}  Bd4+ {[%clk 0:01:39]} 22. Kh1 {[%clk 0:01:01]}  Re2 {[%clk 0:01:38]} 23. Rcd1 {[%clk 0:01:00]}  Bc6 {[%clk 0:01:33]} 24. Nd5 {[%clk 0:00:57]}  Bxd5 {[%clk 0:01:31]} 25. cxd5 {[%clk 0:00:57]}  Bc5 {[%clk 0:01:26]} 26. Rfe1 {[%clk 0:00:54]}  Rfe8 {[%clk 0:01:25]} 27. Bc3 {[%clk 0:00:35]}  R8e3 {[%clk 0:01:06]} 28. h3 {[%clk 0:00:19]}  h5 {[%clk 0:00:51]} 29. Rxe2 {[%clk 0:00:17]}  Rxe2 {[%clk 0:00:51]} 30. Re1 {[%clk 0:00:18]}  Rxe1+ {[%clk 0:00:39]} 31. Bxe1 {[%clk 0:00:19]}  Bd4 {[%clk 0:00:39]} 32. g4 {[%clk 0:00:09]}  Kg7 {[%clk 0:00:38]} 33. Kg2 {[%clk 0:00:09]}  f6 {[%clk 0:00:20]} 34. Bb4 {[%clk 0:00:08]}  g5 {[%clk 0:00:16]} 35. Bxd6 {[%clk 0:00:07]}  Kf7 {[%clk 0:00:13]} 36. f5 {[%clk 0:00:05]}  Ke8 {[%clk 0:00:12]} 37. gxh5 {[%clk 0:00:04]}  Kf7 {[%clk 0:00:11]} 38. Kf3 {[%clk 0:00:04]}  Kg7 {[%clk 0:00:11]} 39. Kg4 {[%clk 0:00:04]}  Kh6 {[%clk 0:00:11]} 40. Bf8+ {[%clk 0:00:03]}  Kh7 {[%clk 0:00:11]} 41. d6 {[%clk 0:00:04]}  Bb6 {[%clk 0:00:11]} 42. Be7 {[%clk 0:00:03]}  Kg7 {[%clk 0:00:12]} 43. d7 {[%clk 0:00:04]}  Kf7 {[%clk 0:00:11]} 44. d8=Q {[%clk 0:00:05]}  Bxd8 {[%clk 0:00:12]} 45. Bxd8 {[%clk 0:00:06]}  b5 {[%clk 0:00:12]} 46. h6 {[%clk 0:00:06]}  Kg8 {[%clk 0:00:13]} 47. Bxf6 {[%clk 0:00:07]}  Kh7 {[%clk 0:00:13]} 48. Kxg5 {[%clk 0:00:08]}  a5 {[%clk 0:00:14]} 49. Bc3 {[%clk 0:00:08]}  a4 {[%clk 0:00:14]} 50. bxa4 {[%clk 0:00:08]}  bxa4 {[%clk 0:00:15]} 51. a3 {[%clk 0:00:09]}  Kg8 {[%clk 0:00:15]} 52. Kg6 {[%clk 0:00:10]}  Kf8 {[%clk 0:00:16]} 53. h7 {[%clk 0:00:11]}  Ke7 {[%clk 0:00:16]} 54. Bb4+ {[%clk 0:00:11]}  Kd7 {[%clk 0:00:17]} 55. h8=Q {[%clk 0:00:12]}  Kc6 {[%clk 0:00:18]} 56. Qf6+ {[%clk 0:00:12]}  Kd5 {[%clk 0:00:18]} 57. Qd6+ {[%clk 0:00:12]}  Kc4 {[%clk 0:00:19]} 58. f6 {[%clk 0:00:12]}  Kb5 {[%clk 0:00:20]} 59. f7 {[%clk 0:00:13]}  Kc4 {[%clk 0:00:21]} 60. f8=Q {[%clk 0:00:13]}  Kb3 {[%clk 0:00:21]} 61. Qf3+ {[%clk 0:00:13]}  Ka2 {[%clk 0:00:22]} 62. Qh2+ {[%clk 0:00:13]}  Kb1 {[%clk 0:00:23]} 63. Qfh1# {[%clk 0:00:14]} 1-0


[Site "https://www.chess.com"]

[Event "Titled Tuesday Blitz January 31 Early 2023"]
[White "Liu, Casper"]
[Black "Toncheva, Nadya"]
[WhiteFideId "1454153"]
[BlackFideId "2924056"]
[WhiteElo "2278"]
[BlackElo "2295"]
[Result "1/2-1/2"]
[Round "05"]
[TimeControl "180+2"]
[Date "2023.01.31"]
[WhiteClock "0:00:03"]
[BlackClock "0:00:04"]

1. e4 {[%clk 0:03:00]}  c5 {[%clk 0:02:59]} 2. Nf3 {[%clk 0:03:00]}  e6 {[%clk 0:02:55]} 3. Nc3 {[%clk 0:02:59]}  Nc6 {[%clk 0:02:52]} 4. g3 {[%clk 0:03:00]}  Nf6 {[%clk 0:02:50]} 5. Bg2 {[%clk 0:03:00]}  d5 {[%clk 0:02:49]} 6. exd5 {[%clk 0:03:00]}  exd5 {[%clk 0:02:50]} 7. d4 {[%clk 0:03:01]}  cxd4 {[%clk 0:02:49]} 8. Nxd4 {[%clk 0:03:01]}  Bg4 {[%clk 0:02:49]} 9. Nce2 {[%clk 0:02:50]}  Bc5 {[%clk 0:02:48]} 10. Nxc6 {[%clk 0:02:43]}  bxc6 {[%clk 0:02:49]} 11. O-O {[%clk 0:02:44]}  O-O {[%clk 0:02:49]} 12. Qd3 {[%clk 0:02:44]}  Re8 {[%clk 0:02:47]} 13. Nd4 {[%clk 0:02:44]}  Qb6 {[%clk 0:02:32]} 14. Be3 {[%clk 0:02:43]}  Rac8 {[%clk 0:02:18]} 15. Rfe1 {[%clk 0:02:30]}  Qxb2 {[%clk 0:02:11]} 16. Rab1 {[%clk 0:02:29]}  Qa3 {[%clk 0:02:11]} 17. Qxa3 {[%clk 0:02:20]}  Bxa3 {[%clk 0:02:12]} 18. Rb7 {[%clk 0:02:20]}  Re7 {[%clk 0:02:01]} 19. Reb1 {[%clk 0:02:04]}  Rxb7 {[%clk 0:01:20]} 20. Rxb7 {[%clk 0:02:05]}  Bc5 {[%clk 0:01:20]} 21. Nf5 {[%clk 0:01:54]}  Bxf5 {[%clk 0:01:15]} 22. Bxc5 {[%clk 0:01:54]}  Bxc2 {[%clk 0:01:12]} 23. Rxa7 {[%clk 0:01:49]}  Rb8 {[%clk 0:01:09]} 24. h3 {[%clk 0:01:46]}  h5 {[%clk 0:01:07]} 25. a4 {[%clk 0:01:46]}  Ne4 {[%clk 0:00:57]} 26. Be3 {[%clk 0:01:23]}  c5 {[%clk 0:00:57]} 27. a5 {[%clk 0:01:19]}  d4 {[%clk 0:00:55]} 28. Bf4 {[%clk 0:01:15]}  Rb1+ {[%clk 0:00:55]} 29. Kh2 {[%clk 0:01:15]}  Nxf2 {[%clk 0:00:47]} 30. a6 {[%clk 0:01:15]}  Ra1 {[%clk 0:00:44]} 31. Ra8+ {[%clk 0:00:47]}  Kh7 {[%clk 0:00:44]} 32. a7 {[%clk 0:00:48]}  Be4 {[%clk 0:00:44]} 33. Bxe4+ {[%clk 0:00:22]}  Nxe4 {[%clk 0:00:45]} 34. Re8 {[%clk 0:00:22]}  Ra2+ {[%clk 0:00:37]} 35. Kg1 {[%clk 0:00:22]}  Rxa7 {[%clk 0:00:24]} 36. Rxe4 {[%clk 0:00:22]}  Kg6 {[%clk 0:00:24]} 37. Re5 {[%clk 0:00:21]}  c4 {[%clk 0:00:23]} 38. Rc5 {[%clk 0:00:16]}  c3 {[%clk 0:00:20]} 39. Rg5+ {[%clk 0:00:13]}  Kf6 {[%clk 0:00:19]} 40. Rc5 {[%clk 0:00:13]}  Ra1+ {[%clk 0:00:15]} 41. Kf2 {[%clk 0:00:12]}  Ra2+ {[%clk 0:00:15]} 42. Kf3 {[%clk 0:00:12]}  Ke6 {[%clk 0:00:06]} 43. Ke4 {[%clk 0:00:11]}  Rh2 {[%clk 0:00:05]} 44. h4 {[%clk 0:00:11]}  c2 {[%clk 0:00:04]} 45. Kxd4 {[%clk 0:00:11]}  Re2 {[%clk 0:00:04]} 46. Kd3 {[%clk 0:00:10]}  Rg2 {[%clk 0:00:03]} 47. Rxc2 {[%clk 0:00:10]}  Rg1 {[%clk 0:00:04]} 48. Ke4 {[%clk 0:00:09]}  Re1+ {[%clk 0:00:04]} 49. Be3 {[%clk 0:00:09]}  Kf6 {[%clk 0:00:04]} 50. Rc6+ {[%clk 0:00:09]}  Ke7 {[%clk 0:00:04]} 51. Kf4 {[%clk 0:00:08]}  g6 {[%clk 0:00:04]} 52. Bc5+ {[%clk 0:00:07]}  Kd7 {[%clk 0:00:04]} 53. Rd6+ {[%clk 0:00:08]}  Ke8 {[%clk 0:00:04]} 54. Kg5 {[%clk 0:00:07]}  Re5+ {[%clk 0:00:04]} 55. Kf6 {[%clk 0:00:05]}  Rf5+ {[%clk 0:00:05]} 56. Kg7 {[%clk 0:00:04]}  Rxc5 {[%clk 0:00:06]} 57. Rd2 {[%clk 0:00:03]}  Re5 {[%clk 0:00:05]} 58. Rf2 {[%clk 0:00:02]}  Re7 {[%clk 0:00:05]} 59. Rf6 {[%clk 0:00:02]}  Re3 {[%clk 0:00:04]} 60. Rxf7 {[%clk 0:00:03]}  Rxg3 {[%clk 0:00:04]} 61. Rf8+ {[%clk 0:00:03]}  Ke7 {[%clk 0:00:05]} 62. Rf6 {[%clk 0:00:03]}  Rg4 {[%clk 0:00:04]} 63. Rxg6 {[%clk 0:00:03]}  Rxh4 {[%clk 0:00:05]} 64. Kh6 {[%clk 0:00:03]}  Rh1 {[%clk 0:00:05]} 65. Kg5 {[%clk 0:00:02]}  h4 {[%clk 0:00:04]} 66. Ra6 {[%clk 0:00:01]}  h3 {[%clk 0:00:04]} 67. Kg4 {[%clk 0:00:02]}  h2 {[%clk 0:00:03]} 68. Kg3 {[%clk 0:00:02]}  Kf7 {[%clk 0:00:03]} 69. Kg2 {[%clk 0:00:01]}  Rb1 {[%clk 0:00:02]} 70. Kxh2 {[%clk 0:00:02]}  Ke7 {[%clk 0:00:02]} 71. Kg3 {[%clk 0:00:03]}  Kd7 {[%clk 0:00:02]} 72. Kf3 {[%clk 0:00:01]}  Rb4 {[%clk 0:00:03]} 73. Kg3 {[%clk 0:00:02]}  Kc7 {[%clk 0:00:03]} 74. Kf3 {[%clk 0:00:03]}  Rc4 {[%clk 0:00:03]} 75. Kg3 {[%clk 0:00:03]}  Rc6 {[%clk 0:00:03]} 76. Rxc6+ {[%clk 0:00:03]}  Kxc6 {[%clk 0:00:04]} 1/2-1/2


[Site "https://www.chess.com"]

[Event "Titled Tuesday Blitz January 31 Early 2023"]
[White "Ezat, Mohamed"]
[Black "Dwilewicz, Katarzyna"]
[WhiteFideId "10600906"]
[BlackFideId "1148486"]
[WhiteElo "2402"]
[BlackElo "2115"]
[Result "1-0"]
[Round "05"]
[TimeControl "180+2"]
[Date "2023.01.31"]
[WhiteClock "0:00:30"]
[BlackClock "0:01:16"]

1. d4 {[%clk 0:01:51]}  d5 {[%clk 0:02:49]} 2. c4 {[%clk 0:01:49]}  dxc4 {[%clk 0:02:49]} 3. e3 {[%clk 0:01:49]}  Nf6 {[%clk 0:02:47]} 4. Bxc4 {[%clk 0:01:46]}  g6 {[%clk 0:02:47]} 5. Qb3 {[%clk 0:01:43]}  e6 {[%clk 0:02:44]} 6. Nf3 {[%clk 0:01:43]}  Bg7 {[%clk 0:02:45]} 7. O-O {[%clk 0:01:42]}  O-O {[%clk 0:02:45]} 8. Bd3 {[%clk 0:01:40]}  b6 {[%clk 0:02:45]} 9. Nc3 {[%clk 0:01:39]}  Bb7 {[%clk 0:02:45]} 10. Ne5 {[%clk 0:01:37]}  Nbd7 {[%clk 0:02:45]} 11. Rd1 {[%clk 0:01:34]}  Nxe5 {[%clk 0:02:41]} 12. dxe5 {[%clk 0:01:34]}  Nd7 {[%clk 0:02:41]} 13. Bb5 {[%clk 0:01:29]}  Qg5 {[%clk 0:02:39]} 14. e4 {[%clk 0:01:24]}  Qxe5 {[%clk 0:02:31]} 15. Bxd7 {[%clk 0:01:22]}  Rad8 {[%clk 0:02:28]} 16. Be3 {[%clk 0:01:18]}  c5 {[%clk 0:02:17]} 17. Bb5 {[%clk 0:01:10]}  f5 {[%clk 0:02:15]} 18. Rxd8 {[%clk 0:01:05]}  Rxd8 {[%clk 0:02:14]} 19. Rd1 {[%clk 0:01:06]}  Rxd1+ {[%clk 0:02:00]} 20. Qxd1 {[%clk 0:01:05]}  Bxe4 {[%clk 0:02:00]} 21. Qd8+ {[%clk 0:01:04]}  Bf8 {[%clk 0:01:56]} 22. Bh6 {[%clk 0:00:53]}  Qd6 {[%clk 0:01:55]} 23. Qxf8+ {[%clk 0:00:52]}  Qxf8 {[%clk 0:01:55]} 24. Bxf8 {[%clk 0:00:52]}  Kxf8 {[%clk 0:01:56]} 25. Nxe4 {[%clk 0:00:52]}  fxe4 {[%clk 0:01:56]} 26. Bc6 {[%clk 0:00:53]}  Ke7 {[%clk 0:01:54]} 27. Bxe4 {[%clk 0:00:53]}  Kd6 {[%clk 0:01:55]} 28. f4 {[%clk 0:00:49]}  c4 {[%clk 0:01:54]} 29. Kf2 {[%clk 0:00:49]}  Kc5 {[%clk 0:01:54]} 30. Ke3 {[%clk 0:00:50]}  b5 {[%clk 0:01:53]} 31. a3 {[%clk 0:00:48]}  a5 {[%clk 0:01:52]} 32. g4 {[%clk 0:00:48]}  b4 {[%clk 0:01:52]} 33. axb4+ {[%clk 0:00:48]}  axb4 {[%clk 0:01:44]} 34. h4 {[%clk 0:00:48]}  b3 {[%clk 0:01:38]} 35. g5 {[%clk 0:00:46]}  c3 {[%clk 0:01:24]} 36. bxc3 {[%clk 0:00:45]}  Kc4 {[%clk 0:01:25]} 37. h5 {[%clk 0:00:36]}  gxh5 {[%clk 0:01:24]} 38. Bxh7 {[%clk 0:00:36]}  b2 {[%clk 0:01:24]} 39. Bb1 {[%clk 0:00:34]}  h4 {[%clk 0:01:16]} 40. g6 {[%clk 0:00:33]}  h3 {[%clk 0:01:16]} 41. Kf2 {[%clk 0:00:30]}  h2 {[%clk 0:01:16]} 42. Kg2 {[%clk 0:00:30]} 1-0


[Site "https://www.chess.com"]

[Event "Titled Tuesday Blitz January 31 Early 2023"]
[White "Matveeva, Olga"]
[Black "Senthil, Maran K"]
[WhiteFideId "24107018"]
[BlackFideId "25035681"]
[WhiteElo "2128"]
[BlackElo "2209"]
[Result "0-1"]
[Round "05"]
[TimeControl "180+2"]
[Date "2023.01.31"]
[WhiteClock "0:00:03"]
[BlackClock "0:01:49"]

1. d4 {[%clk 0:03:00]}  d5 {[%clk 0:02:58]} 2. c4 {[%clk 0:03:01]}  e6 {[%clk 0:02:58]} 3. Nf3 {[%clk 0:03:01]}  h6 {[%clk 0:02:58]} 4. g3 {[%clk 0:03:01]}  dxc4 {[%clk 0:02:56]} 5. Bg2 {[%clk 0:03:01]}  b5 {[%clk 0:02:56]} 6. Ne5 {[%clk 0:02:55]}  c6 {[%clk 0:02:56]} 7. a4 {[%clk 0:02:46]}  b4 {[%clk 0:02:36]} 8. Nxc4 {[%clk 0:02:41]}  Bb7 {[%clk 0:02:34]} 9. O-O {[%clk 0:02:40]}  Nd7 {[%clk 0:02:34]} 10. Nbd2 {[%clk 0:02:33]}  Ngf6 {[%clk 0:02:33]} 11. Nb3 {[%clk 0:02:31]}  Be7 {[%clk 0:02:33]} 12. Nba5 {[%clk 0:02:26]}  Qc8 {[%clk 0:02:25]} 13. Nxb7 {[%clk 0:02:23]}  Qxb7 {[%clk 0:02:26]} 14. Na5 {[%clk 0:02:24]}  Qb6 {[%clk 0:02:25]} 15. Nxc6 {[%clk 0:02:23]}  Rc8 {[%clk 0:02:24]} 16. a5 {[%clk 0:02:16]}  Qa6 {[%clk 0:02:19]} 17. Nxe7 {[%clk 0:02:08]}  Kxe7 {[%clk 0:02:20]} 18. Bd2 {[%clk 0:02:02]}  Qb5 {[%clk 0:02:14]} 19. Qb3 {[%clk 0:01:53]}  Rc4 {[%clk 0:02:10]} 20. Rfc1 {[%clk 0:01:25]}  Rhc8 {[%clk 0:02:07]} 21. Rxc4 {[%clk 0:01:25]}  Rxc4 {[%clk 0:02:08]} 22. Ra4 {[%clk 0:01:15]}  Nd5 {[%clk 0:02:06]} 23. e4 {[%clk 0:01:00]}  Rxd4 {[%clk 0:02:00]} 24. exd5 {[%clk 0:00:40]}  Rxd2 {[%clk 0:01:59]} 25. Rxb4 {[%clk 0:00:36]}  Qe2 {[%clk 0:01:56]} 26. d6+ {[%clk 0:00:18]}  Kxd6 {[%clk 0:01:50]} 27. Rd4+ {[%clk 0:00:03]}  Rxd4 {[%clk 0:01:49]} 0-1


[Site "https://www.chess.com"]

[Event "Titled Tuesday Blitz January 31 Early 2023"]
[White "Rosenberg, Evan S"]
[Black "Womacka, Mathias"]
[WhiteFideId "2019299"]
[BlackFideId "4611390"]
[WhiteElo "1956"]
[BlackElo "2396"]
[Result "0-1"]
[Round "05"]
[TimeControl "180+2"]
[Date "2023.01.31"]
[WhiteClock "0:00:07"]
[BlackClock "0:00:10"]

1. d4 {[%clk 0:02:55]}  Nf6 {[%clk 0:02:58]} 2. Nf3 {[%clk 0:02:55]}  e6 {[%clk 0:02:58]} 3. g3 {[%clk 0:02:55]}  c5 {[%clk 0:02:57]} 4. Bg2 {[%clk 0:02:51]}  cxd4 {[%clk 0:02:57]} 5. O-O {[%clk 0:02:52]}  Qb6 {[%clk 0:02:55]} 6. Nxd4 {[%clk 0:02:47]}  Nc6 {[%clk 0:02:55]} 7. Nb3 {[%clk 0:02:43]}  d5 {[%clk 0:02:54]} 8. Be3 {[%clk 0:02:29]}  Qc7 {[%clk 0:02:50]} 9. N1d2 {[%clk 0:02:29]}  e5 {[%clk 0:02:48]} 10. c4 {[%clk 0:02:23]}  d4 {[%clk 0:02:46]} 11. Bg5 {[%clk 0:02:22]}  Be7 {[%clk 0:02:46]} 12. f4 {[%clk 0:02:15]}  Ng4 {[%clk 0:02:35]} 13. Bxe7 {[%clk 0:02:10]}  Ne3 {[%clk 0:02:19]} 14. Qb1 {[%clk 0:02:08]}  Qxe7 {[%clk 0:02:18]} 15. fxe5 {[%clk 0:01:41]}  Nxf1 {[%clk 0:02:12]} 16. Kxf1 {[%clk 0:01:34]}  Qxe5 {[%clk 0:02:09]} 17. Nf3 {[%clk 0:01:27]}  Qe3 {[%clk 0:02:04]} 18. Qd3 {[%clk 0:01:15]}  Qxd3 {[%clk 0:02:01]} 19. exd3 {[%clk 0:01:15]}  O-O {[%clk 0:01:55]} 20. Rd1 {[%clk 0:01:01]}  Rd8 {[%clk 0:01:51]} 21. a3 {[%clk 0:00:58]}  Bf5 {[%clk 0:01:46]} 22. Nh4 {[%clk 0:00:55]}  Bg4 {[%clk 0:01:40]} 23. Re1 {[%clk 0:00:55]}  Re8 {[%clk 0:01:35]} 24. Bxc6 {[%clk 0:00:45]}  Rxe1+ {[%clk 0:01:22]} 25. Kxe1 {[%clk 0:00:44]}  bxc6 {[%clk 0:01:23]} 26. Nxd4 {[%clk 0:00:41]}  c5 {[%clk 0:01:12]} 27. Nc6 {[%clk 0:00:37]}  g5 {[%clk 0:01:03]} 28. Nf5 {[%clk 0:00:20]}  Re8+ {[%clk 0:00:56]} 29. Nfe7+ {[%clk 0:00:19]}  Kf8 {[%clk 0:00:55]} 30. Kd2 {[%clk 0:00:16]}  Rxe7 {[%clk 0:00:54]} 31. Nxe7 {[%clk 0:00:16]}  Kxe7 {[%clk 0:00:55]} 32. b4 {[%clk 0:00:15]}  Kd6 {[%clk 0:00:51]} 33. Kc3 {[%clk 0:00:15]}  f5 {[%clk 0:00:47]} 34. d4 {[%clk 0:00:15]}  cxd4+ {[%clk 0:00:45]} 35. Kxd4 {[%clk 0:00:16]}  Bf3 {[%clk 0:00:41]} 36. b5 {[%clk 0:00:13]}  Bh1 {[%clk 0:00:37]} 37. c5+ {[%clk 0:00:13]}  Ke6 {[%clk 0:00:37]} 38. a4 {[%clk 0:00:12]}  f4 {[%clk 0:00:36]} 39. gxf4 {[%clk 0:00:12]}  gxf4 {[%clk 0:00:36]} 40. a5 {[%clk 0:00:12]}  Bb7 {[%clk 0:00:25]} 41. a6 {[%clk 0:00:12]}  Bc8 {[%clk 0:00:19]} 42. Ke4 {[%clk 0:00:12]}  f3 {[%clk 0:00:17]} 43. Kxf3 {[%clk 0:00:12]}  Kd5 {[%clk 0:00:17]} 44. b6 {[%clk 0:00:13]}  axb6 {[%clk 0:00:16]} 45. cxb6 {[%clk 0:00:13]}  Bxa6 {[%clk 0:00:16]} 46. Kf4 {[%clk 0:00:12]}  Ke6 {[%clk 0:00:15]} 47. Kg5 {[%clk 0:00:13]}  Kf7 {[%clk 0:00:14]} 48. Kh6 {[%clk 0:00:13]}  Kg8 {[%clk 0:00:14]} 49. h4 {[%clk 0:00:13]}  Bb7 {[%clk 0:00:13]} 50. h5 {[%clk 0:00:12]}  Kh8 {[%clk 0:00:12]} 51. Kg5 {[%clk 0:00:12]}  Kg7 {[%clk 0:00:13]} 52. h6+ {[%clk 0:00:12]}  Kf7 {[%clk 0:00:13]} 53. Kf5 {[%clk 0:00:13]}  Ba8 {[%clk 0:00:11]} 54. Kg5 {[%clk 0:00:11]}  Ke6 {[%clk 0:00:11]} 55. Kh5 {[%clk 0:00:10]}  Kf6 {[%clk 0:00:11]} 56. Kh4 {[%clk 0:00:09]}  Kg6 {[%clk 0:00:11]} 57. Kg4 {[%clk 0:00:08]}  Kxh6 {[%clk 0:00:12]} 58. Kh4 {[%clk 0:00:09]}  Kg6 {[%clk 0:00:12]} 59. Kg4 {[%clk 0:00:10]}  h5+ {[%clk 0:00:12]} 60. Kh4 {[%clk 0:00:10]}  Kh6 {[%clk 0:00:12]} 61. Kh3 {[%clk 0:00:11]}  Kg5 {[%clk 0:00:11]} 62. Kg3 {[%clk 0:00:12]}  h4+ {[%clk 0:00:11]} 63. Kh3 {[%clk 0:00:12]}  Kh5 {[%clk 0:00:10]} 64. Kh2 {[%clk 0:00:13]}  Kg4 {[%clk 0:00:10]} 65. Kg1 {[%clk 0:00:07]}  Kg3 {[%clk 0:00:10]} 0-1


[Site "https://www.chess.com"]

[Event "Titled Tuesday Blitz January 31 Early 2023"]
[White "Martic, Ivan"]
[Black "Levitan, Caleb Levi"]
[WhiteFideId "929301"]
[BlackFideId "14332620"]
[WhiteElo "2301"]
[BlackElo "2129"]
[Result "1-0"]
[Round "05"]
[TimeControl "180+2"]
[Date "2023.01.31"]
[WhiteClock "0:01:39"]
[BlackClock "0:00:04"]

1. e4 {[%clk 0:03:00]}  c5 {[%clk 0:02:59]} 2. Nf3 {[%clk 0:03:01]}  e6 {[%clk 0:03:00]} 3. d4 {[%clk 0:03:01]}  cxd4 {[%clk 0:03:00]} 4. Nxd4 {[%clk 0:03:02]}  a6 {[%clk 0:03:01]} 5. Bd3 {[%clk 0:03:01]}  Bc5 {[%clk 0:02:59]} 6. Nb3 {[%clk 0:03:00]}  Ba7 {[%clk 0:02:58]} 7. Nc3 {[%clk 0:02:54]}  Nc6 {[%clk 0:02:58]} 8. Qe2 {[%clk 0:02:54]}  b5 {[%clk 0:02:57]} 9. Be3 {[%clk 0:02:54]}  Bb7 {[%clk 0:02:57]} 10. Bxa7 {[%clk 0:02:51]}  Rxa7 {[%clk 0:02:57]} 11. O-O-O {[%clk 0:02:50]}  d6 {[%clk 0:02:56]} 12. f4 {[%clk 0:02:48]}  Nge7 {[%clk 0:02:56]} 13. Kb1 {[%clk 0:02:46]}  O-O {[%clk 0:02:47]} 14. h4 {[%clk 0:02:44]}  Qb6 {[%clk 0:02:11]} 15. h5 {[%clk 0:02:43]}  e5 {[%clk 0:02:08]} 16. h6 {[%clk 0:02:42]}  g6 {[%clk 0:02:03]} 17. Nd5 {[%clk 0:02:37]}  Nxd5 {[%clk 0:02:00]} 18. exd5 {[%clk 0:02:38]}  Nd4 {[%clk 0:01:49]} 19. Nxd4 {[%clk 0:02:37]}  exd4 {[%clk 0:01:48]} 20. f5 {[%clk 0:02:12]}  Bxd5 {[%clk 0:01:46]} 21. fxg6 {[%clk 0:02:12]}  fxg6 {[%clk 0:01:41]} 22. Qg4 {[%clk 0:02:06]}  Raf7 {[%clk 0:01:22]} 23. b3 {[%clk 0:02:04]}  a5 {[%clk 0:01:06]} 24. Rhe1 {[%clk 0:01:59]}  a4 {[%clk 0:00:57]} 25. Qg5 {[%clk 0:01:59]}  Qc6 {[%clk 0:00:31]} 26. Re7 {[%clk 0:01:53]}  axb3 {[%clk 0:00:20]} 27. axb3 {[%clk 0:01:50]}  Qc8 {[%clk 0:00:08]} 28. Qxd5 {[%clk 0:01:42]}  Qg4 {[%clk 0:00:07]} 29. Rf1 {[%clk 0:01:39]}  Qh5 {[%clk 0:00:04]} 1-0


[Site "https://www.chess.com"]

[Event "Titled Tuesday Blitz January 31 Early 2023"]
[White "Przybylski, Wojciech"]
[Black "Bernat, David"]
[WhiteFideId "1117599"]
[BlackFideId "2099225"]
[WhiteElo "2321"]
[BlackElo "1862"]
[Result "1-0"]
[Round "05"]
[TimeControl "180+2"]
[Date "2023.01.31"]
[WhiteClock "0:00:47"]
[BlackClock "0:00:09"]

1. e4 {[%clk 0:03:00]}  c5 {[%clk 0:02:59]} 2. Nf3 {[%clk 0:03:00]}  g6 {[%clk 0:03:00]} 3. c3 {[%clk 0:02:59]}  Bg7 {[%clk 0:02:59]} 4. d4 {[%clk 0:02:59]}  cxd4 {[%clk 0:03:00]} 5. cxd4 {[%clk 0:02:59]}  d5 {[%clk 0:03:00]} 6. e5 {[%clk 0:02:59]}  a6 {[%clk 0:03:01]} 7. h3 {[%clk 0:02:59]}  Nc6 {[%clk 0:03:01]} 8. Be2 {[%clk 0:02:59]}  f6 {[%clk 0:03:01]} 9. exf6 {[%clk 0:02:56]}  Nxf6 {[%clk 0:03:02]} 10. O-O {[%clk 0:02:56]}  O-O {[%clk 0:03:03]} 11. Re1 {[%clk 0:02:55]}  Ne4 {[%clk 0:03:01]} 12. Nc3 {[%clk 0:02:55]}  Bf5 {[%clk 0:02:43]} 13. Be3 {[%clk 0:02:52]}  Nxc3 {[%clk 0:02:42]} 14. bxc3 {[%clk 0:02:52]}  e5 {[%clk 0:02:40]} 15. Qb3 {[%clk 0:02:47]}  exd4 {[%clk 0:02:30]} 16. cxd4 {[%clk 0:02:44]}  b5 {[%clk 0:02:25]} 17. a4 {[%clk 0:02:28]}  Na5 {[%clk 0:02:08]} 18. Qb4 {[%clk 0:02:27]}  Nc4 {[%clk 0:02:04]} 19. Bg5 {[%clk 0:02:27]}  Qd7 {[%clk 0:01:51]} 20. axb5 {[%clk 0:02:24]}  axb5 {[%clk 0:01:52]} 21. Be7 {[%clk 0:01:59]}  Rxa1 {[%clk 0:01:43]} 22. Rxa1 {[%clk 0:01:51]}  Re8 {[%clk 0:01:43]} 23. Bxc4 {[%clk 0:01:43]}  dxc4 {[%clk 0:01:26]} 24. Bc5 {[%clk 0:01:40]}  Be4 {[%clk 0:01:13]} 25. Ra7 {[%clk 0:01:27]}  Qd5 {[%clk 0:01:00]} 26. Qxb5 {[%clk 0:01:20]}  Rd8 {[%clk 0:00:20]} 27. Qb6 {[%clk 0:00:53]}  c3 {[%clk 0:00:09]} 28. Qc7 {[%clk 0:00:47]} 1-0


[Site "https://www.chess.com"]

[Event "Titled Tuesday Blitz January 31 Early 2023"]
[White "Pavlidou, Ekaterini"]
[Black "Manukian, Artak"]
[WhiteFideId "4213262"]
[BlackFideId "13301373"]
[WhiteElo "2088"]
[BlackElo "2196"]
[Result "1-0"]
[Round "05"]
[TimeControl "180+2"]
[Date "2023.01.31"]
[WhiteClock "0:00:51"]
[BlackClock "0:00:01"]

1. d4 {[%clk 0:02:56]}  d5 {[%clk 0:02:52]} 2. c4 {[%clk 0:02:55]}  dxc4 {[%clk 0:02:52]} 3. e3 {[%clk 0:02:55]}  e5 {[%clk 0:02:51]} 4. Bxc4 {[%clk 0:02:54]}  exd4 {[%clk 0:02:51]} 5. Qb3 {[%clk 0:02:53]}  Qe7 {[%clk 0:02:50]} 6. Ne2 {[%clk 0:02:52]}  Qb4+ {[%clk 0:02:46]} 7. Bd2 {[%clk 0:02:50]}  Qxb3 {[%clk 0:02:46]} 8. axb3 {[%clk 0:02:49]}  dxe3 {[%clk 0:02:44]} 9. Bxe3 {[%clk 0:02:49]}  Nc6 {[%clk 0:02:34]} 10. O-O {[%clk 0:02:48]}  Nf6 {[%clk 0:02:32]} 11. Nbc3 {[%clk 0:02:46]}  Bd6 {[%clk 0:02:29]} 12. Nb5 {[%clk 0:02:46]}  O-O {[%clk 0:02:27]} 13. Nxd6 {[%clk 0:02:45]}  cxd6 {[%clk 0:02:27]} 14. Nf4 {[%clk 0:02:44]}  Rd8 {[%clk 0:01:38]} 15. Rfd1 {[%clk 0:02:42]}  Ng4 {[%clk 0:01:25]} 16. Bb6 {[%clk 0:02:41]}  Rd7 {[%clk 0:01:20]} 17. Nd5 {[%clk 0:02:39]}  Nge5 {[%clk 0:01:12]} 18. Bb5 {[%clk 0:02:29]}  Kf8 {[%clk 0:00:59]} 19. f4 {[%clk 0:02:28]}  Ng6 {[%clk 0:00:54]} 20. g3 {[%clk 0:02:14]}  Nge7 {[%clk 0:00:48]} 21. Ne3 {[%clk 0:01:52]}  g6 {[%clk 0:00:40]} 22. Rd2 {[%clk 0:01:38]}  Nf5 {[%clk 0:00:32]} 23. Nd5 {[%clk 0:01:30]}  Kg7 {[%clk 0:00:26]} 24. g4 {[%clk 0:01:27]}  Nh4 {[%clk 0:00:25]} 25. Kf2 {[%clk 0:01:21]}  f6 {[%clk 0:00:20]} 26. g5 {[%clk 0:01:17]}  fxg5 {[%clk 0:00:01]} 27. fxg5 {[%clk 0:01:10]}  Nf5 {[%clk 0:00:01]} 28. Nf6 {[%clk 0:01:01]}  Rf7 {[%clk 0:00:01]} 29. Bd3 {[%clk 0:00:58]}  Be6 {[%clk 0:00:01]} 30. Bxf5 {[%clk 0:00:51]}  Bxf5 {[%clk 0:00:01]} 31. Be3 {[%clk 0:00:51]} 1-0


[Site "https://www.chess.com"]